{"text_format":"1","workbook":"xlsx","n_sheets":5,"sheets":["APPLICANTDETAILS","PANDUAN UMUM","SECTION A","SECTION B","HID"],"not_rendered":{"charts":0,"images":4,"macros":0,"external_links":0,"defined_names":0,"comments":1,"pivot_tables":0},"unopened":[],"bounds":{"document_bytes":16777216,"sheet_cells":100000,"rows_first":2000,"rows_last":500,"rows_between":2000,"halvings":0,"cell_chars":16384,"cell_head_chars":4096},"cells_cut":0,"cells_raw":0,"read":"whole","date_system":"1900"}

{"sheet":"APPLICANTDETAILS","index":0,"n_rows":2,"n_cols":50,"rows_kept":2,"cut":false,"hidden":false,"merged":[]}
["APPLICANT REFERENCE ID","APPLICANT NAME","IDENTIFICATION CARD NO","COLOUR","NATIONALITY","MOBILE NUMBER","EMAIL ADDRESS","PROGRAMME APPLIED (1ST)","PROGRAMME APPLIED (2ND)","GENDER","RACE","RELIGION","DATE OF BIRTH","COUNTRY OF BIRTH","MARITAL STATUS","PERMANENT HOME ADDRESS","POST CODE","HOME PHONE NUMBER","OFFICE PHONE NUMBER","FAX NUMBER","IC- DATE OF ISSUE","IC- DATE OD EXPIRY","IC- PLACE OF ISSUE","PASSPORT NUMBER","PPT- DATE OF ISSUE","PPT- DATE OF EXPIRY","PPT- PLACE OF ISSUE","NAME OF NEXT OF KIN","EMAIL OF NEXT OF KIN","MOBILE NO OF NEXT OF KIN","HOME PHONE NO - NEXT OF KIN","OFFICE PHONE NO - NEXT OF KIN","FAX NO - NEXT OF KIN","PERMANENT HOME ADDRESS- NEXT OF KIN","RELATION WITH NEXT OF KIN","SOURCE OF FUNDING","CURRENT EMPLOYMENT","JOB TITLE","NATURE OF WORK","START DATE","NO OF YEARS WORKING (AS OF 01 SEPT 2018)","EDU INSTITUTION RESULT","STUDYING ABROAD","O LEVEL OR EQUIVALENT","A LEVEL OR EQUIVALENT","OTHER QUALIFICATION","FIRST LANGUAGE","IELTS or TOEFL","WORK EXPERIENCE","FUNDING DETAIL"]
[{"$f":"'SECTION A'!$L$4","v":"A00000000"},{"$f":"'SECTION A'!C17","v":0},{"$f":"'SECTION A'!C18","v":0},{"$f":"'SECTION A'!F18","v":0},{"$f":"'SECTION A'!J18","v":0},{"$f":"'SECTION A'!C19","v":0},{"$f":"'SECTION A'!G19","v":0},{"$f":"'SECTION A'!C23","v":"Pilih Program | Choose Programme\nPROGRAMME | SCHOOL"},{"$f":"'SECTION A'!C24","v":"Pilih Program | Choose Programme\nPROGRAMME | SCHOOL"},{"$f":"VLOOKUP('SECTION A'!B35,HID!B:C,2,FALSE)","v":{"$error":"#N/A"}},{"$f":"'SECTION A'!D35","v":0},{"$f":"'SECTION A'!F35","v":0},{"$f":"'SECTION A'!H35","v":"00:00:00"},{"$f":"'SECTION A'!K35","v":0},{"$f":"'SECTION A'!D37","v":0},{"$f":"'SECTION A'!D40","v":0},{"$f":"'SECTION A'!G41","v":0},{"$f":"'SECTION A'!J40","v":0},{"$f":"'SECTION A'!J41","v":0},{"$f":"'SECTION A'!J43","v":0},{"$f":"'SECTION A'!D45","v":"00000000"},{"$f":"'SECTION A'!D47","v":"00:00:00"},{"$f":"'SECTION A'!D48","v":0},{"$f":"'SECTION A'!J45","v":0},{"$f":"'SECTION A'!J46","v":"00:00:00"},{"$f":"'SECTION A'!J47","v":"00:00:00"},{"$f":"'SECTION A'!J48","v":0},{"$f":"'SECTION A'!D50","v":0},{"$f":"'SECTION A'!D51","v":0},{"$f":"'SECTION A'!J51","v":0},{"$f":"'SECTION A'!G53","v":0},{"$f":"'SECTION A'!J53","v":0},{"$f":"'SECTION A'!J55","v":0},{"$f":"'SECTION A'!C52","v":0},{"$f":"'SECTION A'!E56","v":0},{"$f":"VLOOKUP('SECTION A'!$A$125,HID!M:N,2,FALSE)","v":"Other Scholarship"},{"$f":"'SECTION A'!$B$114","v":0},{"$f":"'SECTION A'!$E$114","v":0},{"$f":"'SECTION A'!$H$114","v":0},{"$f":"'SECTION A'!$K$114","v":"00:00:00"},{"$f":"DATEDIF(AN2,\"1/9/2018\",\"y\")","v":118},{"$f":"'SECTION A'!$M$62","v":""},{"$f":"'SECTION A'!M66","v":"No "},{"$f":"'SECTION A'!$M$73","v":""},{"$f":"'SECTION A'!$M$89","v":""},{"$f":"'SECTION A'!M97","v":""},{"$f":"'SECTION A'!$D$105","v":0},{"$f":"'SECTION A'!$M$107","v":""},{"$f":"'SECTION A'!M118","v":""},{"$f":"'SECTION A'!M126","v":"Other Scholarship : "}]

{"sheet":"PANDUAN UMUM","index":1,"n_rows":36,"n_cols":5,"rows_kept":36,"cut":false,"hidden":false,"merged":[[27,1,27,9],[33,1,33,9],[34,1,34,9],[35,1,35,9],[28,1,28,9],[29,1,29,3],[29,4,29,9],[30,1,30,3],[30,4,30,9],[31,1,31,9],[32,1,32,9],[27,0,28,0],[31,0,33,0],[34,0,36,0],[13,1,13,9],[14,1,14,9],[15,1,15,9],[16,1,16,9],[18,1,18,9],[19,1,19,9],[20,1,20,9],[21,1,21,9],[22,1,22,9],[23,1,23,9],[24,1,24,9],[25,1,25,9],[26,1,26,9],[11,1,11,9],[12,1,12,9],[18,0,20,0],[21,0,23,0],[24,0,26,0],[5,0,5,9],[6,0,6,9],[8,1,8,9],[9,1,9,9],[10,1,10,9]]}
[]
[]
[]
[]
[]
["PANDUAN UMUM BAGI PEMOHON"]
["GENERAL GUIDELINES FOR APPLICANTS"]
[]
["No","SENARAI SEMAK | CHECKLIST"]
[1,"Borang A | Form A"]
[2,"Kad Pengenalan atau Paspot |  Identity Card or Passport"]
[3,"Slip keputusan/Sijil yang berkenaan | Relevant academic result slip/certificate [where applicable]:"]
[4,"·        GCE ‘O’ Level or equivalent"]
[5,"·        GCE ‘A’ Level or equivalent "]
[6,"·        National Diploma / Diploma / HNTec or equivalent "]
[7,"·        Course/qualification accreditation letter from Brunei Darussalam’s National Accreditation Council (non-local qualifications)"]
[8,"·        English Language proficiency certificate (e.g. IELTS, TOEFL, GP, IGSE)"]
[]
[1," Borang permohonan hendaklah diisikan dengan betul dan lengkap. "]
[null,"The application form must be correctly and completely filled in.  "]
[]
[2,"Borang yang telah lengkap diisikan hendaklah dihadapkan secara terus melalui emel ke admission@pb.edu.bn dalam format asal beserta salinan-salinan dokumen yang diperlukan."]
[null,"Completed application form and the required document must be submitted in its original format via email to admission@pb.edu.bn   "]
[]
[3,"Salinan-salinan dokumen yang diperlukan seperti yang terkandung di dalam Senarai Semak dan telah disahkan salinan sah hendaklah juga dihadapkan bersama dalam format .pdf"]
[null,"Copies of certified true copy of the document as per required by the Checklist must also be submitted together in .pdf format. "]
[]
[4,"Bagi pemohon yang sedang berkhidmat di sektor Kerajaan dan Swasta, salinan asal borang permohonan dan borang LAPORAN SULIT hendaklah dihadapkan melalui Setiausaha Tetap / Ketua Jabatan di Kementerian / Jabatan atau Majikan masing-masing ke alamat berikut atau emel:"]
[null,"For applicants currently working with the Government and Private sector, the original application form and the CONFIDENTIAL REPORT FORM must be submitted through respective Permanent Secretary / Head of Departments / Employer at their respective Ministry/Department to: "]
[null,"admission@pb.edu.bn ",null,null,"admission@pb.edu.bn "]
[null,"[Tajuk Emel: BORANG A/BAHAGIAN B: {NO IC PEMOHON}]\n\natau\n\nPejabat Pendaftar dan Setiausaha\n11.04, Blok 2E\nPoliteknik Brunei\nJalan Ong Sum Ping\nBandar Seri Begawan BA1311\nNegara Brunei Darussalam \n\n[PER: KEMASUKAN 20…../20…..]\n",null,null,"[Email Subject: BORANG A/BAHAGIAN B: {Applicant IC Number}]\n\nor\n\nRegistrar and Secretary Office \n11.04, Block 2E\nPoliteknik Brunei \nJalan Ong Sum Ping\nBandar Seri Begawan BA1311\nNegara Brunei Darussalam\n\n[RE: ADMISSION 20…../20…..]"]
[5,"Tarikh tutup bagi mengembalikan borang permohonan adalah pada hari Khamis, 01 September 2022 tidak lewat daripada pukul 4.30 petang."]
[null,"The deadline to submit the application form is on Tuesday, 12th September 2023 latest by 3.00 pm. "]
[]
[6,"Mana-mana borang permohonan yang diterima setelah tarikh tutup tidak akan dilayan. "]
[null,"Any application forms received after the deadline will not be entertained. "]

{"sheet":"SECTION A","index":2,"n_rows":147,"n_cols":14,"rows_kept":147,"cut":false,"hidden":false,"merged":[[100,6,100,7],[100,8,100,9],[100,10,100,11],[96,8,96,9],[96,10,96,11],[97,6,97,7],[97,8,97,9],[97,10,97,11],[98,8,98,9],[98,10,98,11],[98,6,98,7],[99,6,99,7],[99,8,99,9],[99,10,99,11],[88,12,92,12],[89,5,89,7],[89,8,89,11],[91,1,91,4],[92,8,92,11],[93,1,93,11],[94,5,94,7],[94,8,95,9],[94,10,95,11],[95,6,95,7],[85,0,87,0],[85,1,87,4],[88,1,88,4],[94,0,95,1],[94,2,95,4],[96,0,96,1],[96,2,96,4],[100,0,100,1],[101,0,101,1],[97,0,97,1],[97,2,97,4],[98,0,98,1],[98,2,98,4],[99,0,99,1],[99,2,99,4],[100,2,100,4],[101,2,101,4],[92,1,92,4],[72,12,82,12],[73,5,73,7],[73,8,73,11],[74,5,74,7],[74,8,74,11],[77,1,77,4],[78,1,78,4],[79,1,79,4],[80,1,80,4],[81,1,81,4],[82,1,82,4],[53,9,53,11],[79,5,79,7],[79,8,79,11],[80,5,80,7],[80,8,80,11],[81,5,81,7],[81,8,81,11],[82,5,82,7],[82,8,82,11],[71,5,71,7],[71,8,71,11],[38,0,42,0],[39,1,40,2],[43,0,45,0],[45,1,45,2],[45,3,45,5],[45,7,45,8],[45,9,45,11],[46,1,46,2],[46,3,46,5],[46,7,46,8],[46,9,46,11],[41,1,42,2],[43,1,43,5],[43,6,47,6],[43,7,43,11],[44,1,44,2],[44,7,44,8],[44,9,44,11],[35,3,35,11],[36,3,36,11],[37,3,37,11],[38,1,38,7],[38,8,38,11],[33,2,34,2],[35,1,35,2],[36,1,36,2],[37,1,37,2],[21,0,21,1],[21,2,21,11],[22,0,22,1],[22,2,22,11],[23,0,23,1],[23,2,23,11],[25,0,25,11],[26,0,26,1],[26,2,26,6],[26,7,26,11],[16,0,16,1],[17,0,17,1],[17,2,17,3],[17,5,17,6],[17,7,17,8],[17,9,17,11],[18,0,18,1],[18,6,18,11],[20,0,20,11],[0,8,1,11],[2,8,2,11],[3,8,3,10],[3,11,4,11],[4,8,4,10],[7,11,14,11],[16,2,16,11],[18,2,18,3],[18,4,18,5],[41,6,41,7],[42,6,42,7],[39,3,40,5],[39,6,39,7],[39,9,39,11],[40,6,40,7],[40,9,40,11],[41,3,42,5],[41,9,41,11],[42,9,42,11],[27,0,27,1],[28,0,28,1],[28,2,28,6],[28,7,28,11],[30,0,30,2],[31,0,31,11],[32,3,32,11],[32,1,32,2],[33,0,34,0],[33,4,34,4],[33,6,34,6],[33,9,34,9],[33,10,33,11],[34,10,34,11],[27,2,27,6],[27,7,27,11],[33,7,33,8],[34,7,34,8],[120,1,120,3],[120,4,120,6],[124,4,124,7],[124,8,124,11],[121,1,121,3],[121,4,121,6],[121,7,121,8],[121,9,121,10],[122,0,122,11],[123,1,123,11],[124,0,124,3],[142,1,142,11],[146,0,146,11],[136,1,136,2],[137,1,137,2],[137,3,137,5],[137,6,137,8],[137,9,137,11],[138,1,138,8],[138,9,138,11],[135,1,135,2],[135,3,135,5],[135,6,135,8],[135,9,135,11],[136,3,136,5],[136,6,136,8],[136,9,136,11],[140,0,140,11],[141,0,141,11],[132,3,132,5],[132,6,132,8],[132,9,132,11],[132,1,132,2],[133,1,133,2],[133,3,133,5],[133,6,133,8],[133,9,133,11],[134,1,134,2],[134,3,134,5],[134,6,134,8],[134,9,134,11],[129,1,129,2],[129,3,129,5],[129,6,129,8],[129,9,129,11],[130,1,130,2],[130,3,130,5],[131,1,131,2],[131,3,131,5],[131,6,131,8],[131,9,131,11],[130,6,130,8],[130,9,130,11],[115,0,116,0],[115,1,116,3],[125,0,125,3],[125,4,125,7],[125,8,125,11],[127,0,127,11],[128,3,128,5],[128,6,128,8],[128,9,128,11],[128,0,128,2],[117,1,117,3],[117,4,117,6],[117,7,117,8],[117,9,117,10],[118,4,118,6],[118,7,118,8],[118,9,118,10],[120,7,120,8],[120,9,120,10],[118,1,118,3],[119,1,119,3],[119,4,119,6],[119,7,119,8],[119,9,119,10],[115,4,116,6],[115,7,116,8],[115,9,115,11],[116,9,116,10],[113,1,113,3],[113,4,113,6],[113,7,113,9],[113,10,113,11],[114,1,114,11],[107,2,107,3],[107,9,107,10],[112,7,112,9],[112,10,112,11],[107,4,107,5],[107,6,107,7],[109,0,109,11],[110,0,110,11],[111,1,111,11],[112,1,112,3],[112,4,112,6],[103,0,103,11],[104,1,104,2],[104,3,104,11],[105,2,105,3],[105,9,105,10],[105,4,105,5],[105,6,105,7],[106,2,106,3],[106,4,106,5],[106,6,106,7],[106,9,106,10],[78,5,78,7],[78,8,78,11],[89,1,89,4],[90,1,90,4],[90,5,90,7],[90,8,90,11],[101,6,101,7],[101,8,101,9],[101,10,101,11],[83,1,83,4],[83,5,83,7],[83,8,83,11],[84,1,84,11],[85,5,85,11],[86,5,86,7],[86,8,86,11],[87,8,87,11],[91,5,91,7],[91,8,91,11],[92,5,92,7],[87,5,87,7],[88,5,88,7],[88,8,88,11],[96,6,96,7],[75,5,75,7],[75,8,75,11],[76,5,76,7],[76,8,76,11],[77,5,77,7],[77,8,77,11],[72,1,72,4],[72,5,72,7],[72,8,72,11],[73,1,73,4],[74,1,74,4],[75,1,75,4],[76,1,76,4],[70,5,70,7],[70,8,70,11],[64,8,64,10],[65,8,65,11],[67,0,67,11],[68,1,68,11],[69,0,71,0],[69,1,71,4],[69,5,69,11],[57,0,57,11],[61,1,61,4],[62,1,62,4],[63,1,63,4],[64,1,64,4],[65,1,65,7],[58,1,58,11],[59,0,60,0],[59,1,60,4],[59,5,59,7],[59,8,60,10],[59,11,60,11],[61,8,61,10],[60,6,60,7],[61,6,61,7],[62,6,62,7],[62,8,62,10],[63,6,63,7],[63,8,63,10],[64,6,64,7],[48,0,48,11],[49,3,49,11],[50,6,50,11],[51,6,51,8],[51,9,51,11],[52,6,52,8],[52,9,52,11],[47,1,47,2],[47,3,47,5],[49,0,55,0],[49,1,49,2],[50,1,50,2],[50,3,50,5],[51,1,54,1],[55,1,55,3],[51,2,53,5],[54,2,54,3],[54,4,54,5],[54,6,54,8],[54,9,54,11],[55,4,55,11],[47,7,47,8],[47,9,47,11],[53,6,53,8]]}
[null,null,null,null,null,null,null,null,"BORANG A / FORM A"]
[]
[null,null,null,null,null,null,null,null,"Untuk Kegunaan Pejabat \n For Office Use:"]
[null,null,null,null,null,null,null,null,"Rujukan Permohonan",null,null,{"$f":"CONCATENATE(\"A\",TEXT($C$18,\"00000000\"))","v":"A00000000"}]
[null,null,null,null,null,null,null,null,"Applicant's Reference"]
[]
[]
[]
[]
[]
[]
[]
[]
[null,null,null,null,null,null,"BORANG PERMOHONAN SESI AKADEMIK"]
[null,null,null,null,null,null,"APPLICATION FORM ACADEMIC SESSION",{"$f":"H14","v":0}]
[]
["Nama Pemohon\nApplicant's Name"]
["No. Kad Pengenalan\nIdentification Card Number ",null,null,null,"Warna\nColour",null,null,"Warganegara\nNationality"]
["No. Telefon Bimbit\nMobile Phone Number",null,null,null,"Alamat Emel\nEmail Adress"]
[]
["PILIHAN PROGRAM (MENGIKUT PILIHAN UTAMA)\nPROGRAMME CHOICE (ACCORDING TO PREFERENCES)"]
["Pilihan\nChoice",null,"Program Diploma Level 5\nLevel 5 Diploma Programmes"]
["Pertama\nFirst",null,"Pilih Program | Choose Programme\nPROGRAMME | SCHOOL"]
["Kedua\nSecond",null,"Pilih Program | Choose Programme\nPROGRAMME | SCHOOL"]
[]
["UNTUK KEGUNAAN PEJABAT SAHAJA\nFOR OFFICE USE ONLY"]
["Pilihan\nChoice",null,"Pertama\nFirst",null,null,null,null,"Kedua\nSecond"]
["Status Pemohon\nApplication Status"]
["Sebab\nReason"]
[]
["BAHAGIAN/SECTION A"]
["i. MAKLUMAT PERIBADI / PERSONAL DETAILS"]
[1,"Nama Pemohon\nApplicant's Name",null,{"$f":"C17","v":0}]
[2,"Jantina\nGender",3,"Bangsa\nRace",4,"Ugama\nReligion","5a","Tarikh Lahir\nDate of Birth\n(DD/MM/YYYY)",null,"5b","Negeri Tempat Lahir\nCountry of Birth"]
[]
["5c","Warganegara\nNationality",null,{"$f":"$J$18","v":0}]
["5d","Taraf Kelamin\nMarital Status"]
["5e","Alamat Emel\nEmail Address",null,{"$f":"$G$19","v":0}]
[6,"Alamat\nAddress",null,null,null,null,null,null,"Telefon\nTelephone"]
[null,"Alamat Tetap\nPermanent Home Address",null,null,null,null,"Poskod\nPostcode",null,"Rumah\nHome"]
[null,null,null,null,null,null,null,null,"Pejabat\nOffice"]
[null,"Alamat Persuratan (Jika Berlainan)\nCorrespondence Address\n(If different)",null,null,null,null,"Poskod\nPostcode",null,"Bimbit\nMobile",{"$f":"$C$19","v":0}]
[null,null,null,null,null,null,null,null,"Faksimili\nFax"]
[7,"Keterangan Kad Pengenalan\nIdentity Card Details",null,null,null,null,10,"Keterangan Passport (Pelajar Asing)\nPassport Details (International Students)"]
[null,"No. Kad Pengenalan Identification Card Number",null,{"$f":"TEXT(C18,\"00000000\")","v":"00000000"},"Warna\nColour",{"$f":"F18","v":0},null,"Bilangan Paspot\nPassport Number"]
[null,"Tarikh Dikeluarkan\nDate of Issue (dd/mm/yyyy)",null,null,null,null,null,"Tarikh Dikeluarkan \nDate of Issue (dd/mm/yyyy)"]
[8,"Tarikh Mansuh\nDate of Expiry (dd/mm/yyyy)",null,null,null,null,null,"Tarikh Mansuh\nDate of Expiry (dd/mm/yyyy)"]
[9,"Tempat Dikeluarkan\nPlace of Issue",null,null,null,null,null,"Tempat Dikeluarkan\nPlace of Issue"]
["MAKLUMAT ORANG YANG MUDAH DIHUBUNGI / NEXT OF KIN DETAIL"]
[11,"Nama\nContact Person / Next of Kin"]
[null,"Alamat Emel\nEmail Address",null,null,null,null,"Telefon\nTelephone"]
[null,"Alamat Tetap\nPermanent Home Address",null,null,null,null,"Rumah\nHome",null,null,"Pejabat\nOffice"]
[]
[null,null,null,null,null,null,"Bimbit\nMobile",null,null,"Faksimili\nFax"]
[null,null,"Poskod\nPostcode"]
[null,"Hubungan dengan Pemohon\nRelationship with Applicant"]
[]
["ii. MAKLUMAT AKADEMIK / ACADEMIC"]
[1,"Senarai Institusi Tempat Belajar dalam dan luar negeri (yang terbaru dahulu)\nList of Educational Institution Locally or Abroad (Most recent first)"]
["Bil.\nNo","Nama Institusi\nNames of Institution",null,null,null,"Tempoh Pengajian\nStudy Duration",null,null,"Kelulusan / Peringkat Pengajian\nQualification / Level of Study",null,null,"Gred\nGrade"]
[null,null,null,null,null,"Dari\nFrom\n(MM/YY)","Hingga\nTo\n(MM/YY)"]
[{"$f":"IF(B62=\"\",\"\",\"1.\")","v":""},null,null,null,null,null,null,null,null,null,null,null,{"$f":"IF(A62=\"\",\"\",CONCATENATE(\"[\",A62,B62,\" (\",TEXT(F62,\"MM/YYYY\"),\"-\",TEXT(G62,\"MM/YYYY\"),\"): \",I62, \" - GRADE: \",L62,\"]\"))\n& IF(A63=\"\",\"\",CONCATENATE(\" ; \"\"[\",A63,B63,\" (\",TEXT(F63,\"MM/YYYY\"),\"-\",TEXT(G63,\"MM/YYYY\"),\"): \",I63, \" - GRADE: \",L63,\"]\"))\n& IF(A64=\"\",\"\",CONCATENATE(\" ; \"\"[\",A64,B64,\" (\",TEXT(F64,\"MM/YYYY\"),\"-\",TEXT(G64,\"MM/YYYY\"),\"): \",I64, \" - GRADE: \",L64,\"]\"))\n& IF(A65=\"\",\"\",CONCATENATE(\" ; \"\"[\",A65,B65,\" (\",TEXT(F65,\"MM/YYYY\"),\"-\",TEXT(G65,\"MM/YYYY\"),\"): \",I65, \" - GRADE: \",L65,\"]\"))","v":""}]
[{"$f":"IF(B63=\"\",\"\",\"2.\")","v":""}]
[{"$f":"IF(B64=\"\",\"\",\"3.\")","v":""}]
[{"$f":"IF(B65=\"\",\"\",\"4.\")","v":""}]
[2,"Jika menuntut di Luar Negara, Sila nyatakan tarikh dijangka berada ditanah air\nIf you are studying abroad, please state your date of return to Brunei",null,null,null,null,null,null,null,null,null,null,{"$f":"IF(I66=\"\",\"No \", \"Yes, Date Return: \" & TEXT(I66,\"dd/mm/yyyy\"))","v":"No "}]
[]
["iii. PENCAPAIAN  AKADEMIK / ACADEMIC ACHIEVEMENT"]
[1,"Keputusan Peperiksaan Sijil Am Pelajaran Brunei Cambridge Peringkat Biasa atau yang diiktirafkan sebanding dengannya\nResults of Brunei Cambridge General Certification of Education  at ordinary level (O’Level) or its equivalent"]
["Bil.\nNo.","Mata Pelajaran\nSubject ",null,null,null,"Tajuk Peperiksaan & Tahun mendudukinya (Grade yang tertinggi diperolehi sahaja)\nTitle of Examination & Year of Examination (Highest grade attained only)"]
[null,null,null,null,null,"Pilih Tajuk Peperiksaan\nChoose Title of examination",null,null,"Tahun Diperolehi\nYear Attained"]
[null,null,null,null,null,"Gred (contoh C6)\nGrade (Example C6)",null,null,"(MM/YYYY)"]
[1,null,null,null,null,null,null,null,null,null,null,null,{"$f":"IF(B73=\"\",\"\",CONCATENATE(\"[\",F71,\"]: \",B73,\"-\", TEXT(I73,\"mmm/YY\"),\" (\",F73,\")\"))\n& IF(B74=\"\",\"\",CONCATENATE(\" ; \",B74, \"-\", TEXT(I74,\"mmm/YY\"),\" (\",F74,\")\"))\n& IF(B75=\"\",\"\",CONCATENATE(\" ; \",B75,\"-\", TEXT(I75,\"mmm/YY\"),\" (\",F75,\")\"))\n& IF(B76=\"\",\"\",CONCATENATE(\" ; \",B76,\"-\", TEXT(I76,\"mmm/YY\"),\" (\",F76,\")\"))\n& IF(B77=\"\",\"\",CONCATENATE(\" ; \",B77,\"-\", TEXT(I77,\"mmm/YY\"),\" (\",F77,\")\"))\n& IF(B78=\"\",\"\",CONCATENATE(\" ; \",B78,\"-\", TEXT(I78,\"mmm/YYYY\"),\" (\",F78,\")\"))\n& IF(B79=\"\",\"\",CONCATENATE(\" ; \",B79,\"-\", TEXT(I79,\"mmm/YYYY\"),\" (\",F79,\")\"))\n& IF(B80=\"\",\"\",CONCATENATE(\" ; \",B80,\"-\", TEXT(I80,\"mmm/YYYY\"),\" (\",F80,\")\"))\n& IF(B81=\"\",\"\",CONCATENATE(\" ; \",B81,\"-\", TEXT(I81,\"mmm/YYYY\"),\" (\",F81,\")\"))\n& IF(B82=\"\",\"\",CONCATENATE(\" ; \",B82,\"-\", TEXT(I82,\"mmm/YYYY\"),\" (\",F82,\")\"))\n& IF(B83=\"\",\"\",CONCATENATE(\" ; \",B83,\"-\", TEXT(I83,\"mmm/YYYY\"),\" (\",F83,\")\"))\n& IF(B84=\"\",\"\",CONCATENATE(\" ; \",B84,\"-\", TEXT(I84,\"mmm/YYYY\"),\" (\",F84,\")\"))","v":""}]
[2]
[3]
[4]
[5]
[6]
[7]
[8]
[9]
[10]
[11]
[12]
[3,"Keputusan Peperiksaan Sijil Am Pelajaran Brunei Cambridge Peringkat Lanjutan atau yang diiktiraf sebanding dengannya)\nResults of Brunei Cambridge General Certification of Education  at Advance level (A’Level) or its equivalent"]
["Bil.\nNo.","Mata Pelajaran\nSubject ",null,null,null,"Tajuk Perperiksaan & Tahun mendudukinya\nTitle of Examination & Year of Examination"]
[null,null,null,null,null,"Pilih Tajuk Peperiksaan\nChoose Title of examination",null,null,"Tahun Diperolehi\nYear Attained"]
[null,null,null,null,null,"Gred (contoh C)\nGrade (Example C)",null,null,"(MM/YYYY)"]
[1,null,null,null,null,null,null,null,null,null,null,null,{"$f":"IF(B89=\"\",\"\",CONCATENATE(\"[\",F87,\"]: \",B89,\"-\",TEXT(I89,\"mmm/YYYY\"),\" (\",F89,\")\"))\n& IF(B90=\"\",\"\",CONCATENATE(\" ; \",B90,\"-\",TEXT(I90,\"mmm/YYYY\"),\" (\",F90,\")\"))\n& IF(B91=\"\",\"\",CONCATENATE(\" ; \",B91,\"-\",TEXT(I91,\"mmm/YYYY\"),\" (\",F91,\")\"))\n& IF(B92=\"\",\"\",CONCATENATE(\" ; \",B92,\"-\",TEXT(I92,\"mmm/YYYY\"),\" (\",F92,\")\"))\n& IF(B93=\"\",\"\",CONCATENATE(\" ; \",B93,\"-\",TEXT(I93,\"mmm/YYYY\"),\" (\",F93,\")\"))","v":""}]
[2]
[3]
[4]
[5]
[4,"Keputusan keputusan lain (Sijil  Kebangsaan / Diploma)\nOther Examination results (National Certificate / Diploma)"]
["Kelulusan & Nama Program\nQualification & Programme Name",null,"Nama Institusi & Negeri\nInstitution Name & Country",null,null,"Tempoh Pengajian\nStudy Duration",null,null,"Keputusan Peperiksaan (GPA)\nExamination Results (GPA)",null,"Bahasa Penghantar\nLanguage Medium"]
[null,null,null,null,null,"Dari\nFrom\n(MM/YYYY)","Hingga\nTo\n(MM/YYYY)"]
[null,null,null,null,null,null,null,null,null,null,null,null,{"$f":"IF(A97=\"\",\"\",CONCATENATE(\"[\",A97,\"; \",C97,\" (\",TEXT(F97,\"MM/YYYY\"),\"-\",TEXT(G97,\"MM/YYYY\"),\")\", \" GRADE: \",I97,\"]\",\" LANG: \", K97))\n& IF(A98=\"\",\"\",CONCATENATE(\" ; \"\"[\",A98,C98,\" (\",TEXT(F98,\"MM/YYYY\"),\"-\",TEXT(G98,\"MM/YYYY\"),\")\", \"GRADE: \",I98,\"]\",\"LANG: \", K98))\n& IF(A99=\"\",\"\",CONCATENATE(\" ; \"\"[\",A99,C99,\" (\",TEXT(F99,\"MM/YYYY\"),\"-\",TEXT(G99,\"MM/YYYY\"),\")\", \"GRADE: \",I99,\"]\",\"LANG: \", K99))\n& IF(A100=\"\",\"\",CONCATENATE(\" ; \"\"[\",A100,C100,\" (\",TEXT(F100,\"MM/YYYY\"),\"-\",TEXT(G100,\"MM/YYYY\"),\")\", \"GRADE: \",I100,\"]\",\"LANG: \", K100))","v":""}]
[]
[]
[]
[]
[]
[]
["IV. KEMAHIRAN BAHASA / LANGUAGE PROFICIENCY"]
[1,"Bahasa Pertama\nFirst Language"]
[2,"Kelulusan\nQualification","Mata keseluruhan\nOverall Score",null,"Pendengaran\nListening",null,"Membaca\nReading",null,"Menulis\nWriting","Percakapan\nOral",null,"Tarikh dianugerahkan\nAward Date\n(dd/mm/yyyy)"]
["a","IELTS",null,null,null,null,null,null,null,null,null,null,{"$f":"IF(C107=\"\",\"\",CONCATENATE(B107,\": \",TEXT(C107,\"#.00\"),\" (\",TEXT(L107,\"DD/MM/YYYY\"),\")\"))\n&IF(C108=\"\",\"\",CONCATENATE(B108,\": \",TEXT(C108,\"#.00\"),\" (\",TEXT(L108,\"DD/MM/YYYY\"),\")\"))","v":""}]
["b","TOEFL"]
[]
["V. MAKLUMAT PEKERJAAN / EMPLOYMENT DETAIL"]
["Pengalaman bekerja (Jika berkenaan)\nWorking Experiences (If applicable)"]
[1,"Maklumat pekerjaan sekarang\nCurrent employment detail"]
["Bil.\nNo.","Nama & Alamat Majikan\nName & Address of Employer",null,null,"Nama Jawatan\nJob Title",null,null,"Bidang Pekerjaan\nNature of Work",null,null,"Tarikh Mula\nStart Date\n(dd/mm/yyyy)"]
[1]
[2,"Maklumat pekerjaan terdahulu\nPrevious employment detail(s)"]
["Bil.\nNo.","Nama & Alamat Majikan\nName & Address of Employer",null,null,"Nama Jawatan\nJob Title",null,null,"Bidang Pekerjaan\nNature of Work",null,"Tempoh Bekerja (Tarikh)\nWork Duration (Date)"]
[null,null,null,null,null,null,null,null,null,"Dari\nFrom\n(MM/YYYY)",null,"Hingga\nTo\n(MM/YYYY)"]
[{"$f":"IF(B118=\"\",\"\",\"1.\")","v":""},null,null,null,null,null,null,null,null,null,null,null,{"$f":"IF(B118=\"\",\"\",CONCATENATE(A118, \" \",B118,\" [\",E118,\", \", H118, \"]\",\" (\",TEXT(J118,\"MM/YYYY\"),\"-\",TEXT(L118,\"MM/YYYY\"),\"= \", N118, \" yrs)\"))\n& IF(B119=\"\",\"\",CONCATENATE(\" ; \",A119, \" \",B119,\" [\",E119,\", \", H119, \"]\",\" (\",TEXT(J119,\"MM/YYYY\"),\"-\",TEXT(L119,\"MM/YYYY\"),\"= \", N119, \" yrs)\"))\n& IF(B120=\"\",\"\",CONCATENATE(\" ; \",A120, \" \",B119,\" [\",E120,\", \", H120, \"]\",\" (\",TEXT(J120,\"MM/YYYY\"),\"-\",TEXT(L120,\"MM/YYYY\"),\"= \", N120, \" yrs)\"))\n& IF(B121=\"\",\"\",CONCATENATE(\" ; \",A121, \" \",B119,\" [\",E121,\", \", H121, \"]\",\" (\",TEXT(J121,\"MM/YYYY\"),\"-\",TEXT(L121,\"MM/YYYY\"),\"= \", N121, \" yrs)\"))\n& IF(B122=\"\",\"\",CONCATENATE(\" ; \",A122, \" \",B112,\" [\",E122,\", \", H122, \"]\",\" (\",TEXT(J122,\"MM/YYYY\"),\"-\",TEXT(L122,\"MM/YYYY\"),\"= \", N122, \" yrs)\"))","v":""},{"$f":"DATEDIF(J118,L118,\"y\")","v":0}]
[{"$f":"IF(B119=\"\",\"\",\"2.\")","v":""}]
[{"$f":"IF(B120=\"\",\"\",\"3.\")","v":""}]
[{"$f":"IF(B121=\"\",\"\",\"4.\")","v":""}]
[{"$f":"IF(B122=\"\",\"\",\"5.\")","v":""}]
["Vi. BIAYA PENGAJIAN / FUNDING"]
[1,"Sila pilih jenis biaya pengajian di ruang senarai.\nPlease choose the type of funding for your education in the drop-down list. "]
["Biasiswa lain (Sila nyatakan)\nOther scholarship (please specify)",null,null,null,"Surat rujukan (Jika berkenaan)\nReference Letter (If applicable)",null,null,null,"Tarikh (DD/MM/YYYY)\nDate"]
[null,null,null,null,null,null,null,null,null,null,null,null,{"$f":"VLOOKUP(A125,HID!M:N,2,FALSE) &\nCONCATENATE(\" : \",IF(OR(A125=HID!M6,A125=HID!M9),'SECTION A'!A126,\"\")) &\nIF('SECTION A'!E126=\"\",\"\",\nCONCATENATE(\" [Ruj: \",'SECTION A'!E126,\" : \",TEXT('SECTION A'!I126,\"DD-MMM-YYYY\"),\"]\"))","v":"Other Scholarship : "}]
[]
["Vii. KETERANGAN IBUBAPA/PENJAGA/SUAMI/ISTERI PEMOHON /\nDETAILS OF APPLICANTS PARENT/GUARDIAN/HUSBAND/WIFE"]
[null,null,null,"Bapa\nFather",null,null,"Ibu\nMother",null,null,"Penjaga/Suami/Isteri\nGuardian/Husband/Wife"]
[1,"Nama\nName"]
[2,"No. Kad Pengenalan\nIdentification Card Number"]
[3,"Warganegara\nNationality"]
[4,"Bangsa\nRace"]
[5,"Ugama\nReligion"]
[6,"Pekerjaan\nOccupation"]
[7,"Alamat tetap\nPermenant Home Address"]
[8,"Telefon\nTelephone"]
[9,"Tarikh meninggal dunia (jika berkenaan)\nDate deceased (if applicable)"]
[10,"Hubungan penjaga dengan pemohon (jika penjaga bukan bapa atau ibu pemohon)\nGuardian’s relationship with applicants"]
[]
["VII. PENGAKUAN DAN TANDATANGAN PEMOHON / DECLARATION AND APPLICANT’S SIGNATURE"]
["Saya mengaku bahawa segala maklumat yang diberikan diatas adalah benar dan saya faham bahawa jika ada keterangan dan salinan sijil sijil dan surat akuan yang saya kemukakan tidak betul atau tidak benar, maka Politeknik Brunei berhak menolak permohonan ini.  Saya juga mengakui bahawa permohonan ini dikembalikan secara medium elektronik dan ianya tidak memerlukan sebarang tandatangan. \n\nI declare that all the particulars and information provided in this application are true to my best knowledge and belief, and I am fully aware that Politeknik Brunei reserves the right to reject this application if, at any stage that the statements above are incorrect. I also understand that this form is submitted electronically and does not require any signature. "]
["Tarikh:\nDate:"]
[]
[]
[]
["Sila tekan \"save\" sebelum menghantar borang ini\nPlease save the file before submitting the form"]

{"sheet":"SECTION B","index":3,"n_rows":39,"n_cols":12,"rows_kept":39,"cut":false,"hidden":false,"merged":[[38,0,38,5],[38,6,38,11],[28,2,28,8],[29,2,29,8],[29,9,34,11],[30,0,31,0],[30,1,31,1],[30,2,31,7],[32,2,32,4],[32,6,32,8],[33,2,33,8],[34,2,34,5],[34,6,34,7],[36,0,36,11],[25,1,25,3],[25,4,25,11],[26,1,26,11],[27,1,27,11],[28,10,28,11],[23,1,23,2],[23,3,23,7],[23,9,23,11],[24,1,24,3],[24,4,24,11],[17,0,17,11],[18,0,18,11],[20,0,20,11],[21,0,21,11],[22,1,22,2],[22,3,22,11],[0,8,1,11],[2,8,2,11],[3,8,3,10],[3,11,4,11],[4,8,4,10]]}
[null,null,null,null,null,null,null,null,"BORANG A / FORM A"]
[]
[null,null,null,null,null,null,null,null,"Untuk Kegunaan Pejabat \n For Office Use:"]
[null,null,null,null,null,null,null,null,"Rujukan Permohonan",null,null,{"$f":"'SECTION A'!$L$4","v":"A00000000"}]
[null,null,null,null,null,null,null,null,"Applicant's Reference"]
[]
[]
[]
[]
[]
[]
[]
[]
[]
[]
[]
[]
["BAHAGIAN B / SECTION B"]
["LAPORAN SULIT\nCONFIDENTIAL REPORT"]
[]
["VIII. PENGESAHAN / ENDORSEMENT"]
["Pengesahan oleh ketua / Pendaftar Institusi (bagi pelajar), Ketua Jabatan(bagi Pegawai Kerajaan) dan Majikan (bagi Kakitangan disektor Swasta) sebagai Penyokong.\nEndorsement by the Institution’s Head / Registrar (for student), Head of Department (for Government Officer) and Employer (for Employee in Private Sector) as Referee.\n\nSaya mengesahkan maklumat yang diberikan adalah benar.\nI endorse that all the details given are true."]
[1,"Nama Pemohon\nApplicant's Name",null,{"$f":"'SECTION A'!$C$17","v":0}]
[2,"No. Kad Pengenalan\nIdentification Card Number",null,{"$f":"'SECTION A'!$C$18","v":0},null,null,null,null,"Warna\nColour",{"$f":"'SECTION A'!$F$18","v":0}]
[null,"Program Yang Dipohonkan (Pilihan Pertama)\nProgramme Applied (First Choice)",null,null,{"$f":"'SECTION A'!$C$23","v":"Pilih Program | Choose Programme\nPROGRAMME | SCHOOL"}]
[3,"Program Yang Dipohonkan (Pilihan Kedua)\nProgramme Applied (Second Choice)",null,null,{"$f":"'SECTION A'!$C$24","v":"Pilih Program | Choose Programme\nPROGRAMME | SCHOOL"}]
[4,"Pandangan dan Ulasan Penyokong Terhadap Pemohon\nReferee's comments and opinions about the applicant"]
[]
[5,"Nama Penyokong\nName of Referee",null,null,null,null,null,null,null,10,"Cap Rasmi\nOfficial Stamp"]
[6,"Jawatan\nDesignation"]
[7,"Alamat Pejabat\nOffice Address",null,null,null,null,null,null,"Poskod\nPostcode"]
[]
[8,"Telefon Pejabat\nOffice Telephone ",null,null,null,"Faksimili\nFax"]
[9,"Alamat Emel\nEmail Address"]
[10,"Tandatangan:               \nSignature:                                                                                                              ",null,null,null,null,"Tarikh\nDate (DD/MM/YYYY)"]
[]
["Sila imbaskan dan emel borang ini ke alamat di bawah dengan tajuk email \"Borang A/Bahagian B : {Nombor IC Pemohon}\"\nPlease scan and email this form to the address below with the subject \"Borang A/Bahagian B : {Applicant IC Number}\"\nemail: admission@pb.edu.bn"]
[]
["atau\n\nPejabat Pendaftar dan Setiausaha\n11.04, Blok 2E\nPoliteknik Brunei\nJalan Ong Sum Ping\nBandar Seri Begawan BA1311\nNegara Brunei Darussalam \n\n[PER: KEMASUKAN 20…../20.....]\n",null,null,null,null,null,"or\n\nRegistrar and Secretary Office \n11.04, Block 2E\nPoliteknik Brunei \nJalan Ong Sum Ping\nBandar Seri Begawan BA1311\nNegara Brunei Darussalam\n\n[RE: ADMISSION 20…../20…..]"]

{"sheet":"HID","index":4,"n_rows":232,"n_cols":17,"rows_kept":232,"cut":false,"hidden":true,"merged":[]}
["COUNTRY","JANTINA | GENDER","GENDER","WARNA / COLOUR","IC COLOUR","Programme Title","SCHOOL","Pilih Program | Choose Programme\nPROGRAMME | SCHOOL","APPLICATION STATUS",null,"MARITAL STATUS","MARITAL STATUS","BIAYA PENGAJIAN | ACADEMIC FUNDING",null,"Pilih Tajuk Peperiksaan\nChoose Title of examination","Pilih Tajuk Peperiksaan\nChoose Title of examination","ACADEMIC YEAR"]
["AFGHANISTAN ","LELAKI | MALE","MALE","KUNING / YELLOW","YELLOW","Diploma in Business Accounting and Finance","SCHOOL OF BUSINESS",{"$f":"CONCATENATE(F2,\" | \", G2)","v":"Diploma in Business Accounting and Finance | SCHOOL OF BUSINESS"},"PRE-OFFER",null,"BUJANG / SINGLE","SINGLE","Biasiswa Kerajaan | Government Scholarship","Government Scholarship","GCE O LEVEL","GCE A LEVEL","2022/2023"]
["ALBANIA ","PEREMPUAN | FEMALE","FEMALE","HIJAU / GREEN","GREEN","Diploma In Business Studies (Entrepreneurship)","SCHOOL OF BUSINESS","Diploma In Business Studies (Entrepreneurship) | SCHOOL OF BUSINESS","REJECT",null,"KAHWIN / MARRIED","MARRIED","Persendirian | Self Funded","Self-Funded","SPM","Lain-lain, sila taip disini\nOther please type here","2023/2024"]
["ALGERIA ",null,null,"MERAH / RED","RED","Diploma In Business Studies (General)","SCHOOL OF BUSINESS","Diploma In Business Studies (General) | SCHOOL OF BUSINESS","RESERVE",null,"JANDA atau DUDA / DIVORCED","DIVORCED","Biaya Majikan | Funded by Employer","Funded by Employer","Lain-lain, sila taip disini\nOther please type here",null,"2024/2025"]
["AMERICAN SAMOA ",null,null,"UNGU / PURPLE","PURPLE","Diploma in Business Studies (Human Resource Management)","SCHOOL OF BUSINESS","Diploma in Business Studies (Human Resource Management) | SCHOOL OF BUSINESS",null,null,"BALU / WIDOWED","WIDOWED","Latihan dalam Perkhidmatan | In service Training","In service Training",null,null,"2025/2026"]
["ANDORRA ",null,null,"TIDAK BERKENAAN / NOT APPLICABLE","N/A","Diploma in Business Studies (Marketing)","SCHOOL OF BUSINESS","Diploma in Business Studies (Marketing) | SCHOOL OF BUSINESS",null,null,null,null,"Biasiswa lain (Sila nyatakan)\nOther scholarship (please specify)","Other Scholarship"]
[null,null,null,null,null,"Diploma in Entrepreneurship & Marketing Strategies","SCHOOL OF BUSINESS","Diploma in Entrepreneurship & Marketing Strategies | SCHOOL OF BUSINESS"]
[null,null,null,null,null,"Diploma in Health Science (Dental Hygiene & Therapy)","SCHOOL OF HEALTH SCIENCE","Diploma in Health Science (Dental Hygiene & Therapy) | SCHOOL OF HEALTH SCIENCE"]
["ANGOLA ",null,null,null,null,"Diploma in Health Science (Midwifery)","SCHOOL OF HEALTH SCIENCE","Diploma in Health Science (Midwifery) | SCHOOL OF HEALTH SCIENCE",null,null,null,null,"Lain lain (Sila nyatakan)\nOthers (Please specify)","Others"]
["ANGUILLA ",null,null,null,null,"Diploma in Health Science (Nursing)","SCHOOL OF HEALTH SCIENCE","Diploma in Health Science (Nursing) | SCHOOL OF HEALTH SCIENCE"]
["ANTIGUA & BARBUDA ",null,null,null,null,"Diploma in Health Science (Paramedic)","SCHOOL OF HEALTH SCIENCE","Diploma in Health Science (Paramedic) | SCHOOL OF HEALTH SCIENCE"]
["ARGENTINA ",null,null,null,null,"Diploma in Data Analytics","SCHOOL OF ICT","Diploma in Data Analytics | SCHOOL OF ICT"]
["ARMENIA ",null,null,null,null,"Diploma in Digital Media","SCHOOL OF ICT","Diploma in Digital Media | SCHOOL OF ICT"]
["ARUBA ",null,null,null,null,"Diploma in Information Systems","SCHOOL OF ICT","Diploma in Information Systems | SCHOOL OF ICT"]
["AUSTRALIA ",null,null,null,null,"Diploma in IT Network ","SCHOOL OF ICT","Diploma in IT Network  | SCHOOL OF ICT"]
["AUSTRIA ",null,null,null,null,"Diploma in Web Development","SCHOOL OF ICT","Diploma in Web Development | SCHOOL OF ICT"]
["AZERBAIJAN ",null,null,null,null,"Diploma in Architecture","SCHOOL OF SCIENCE & ENGINEERING","Diploma in Architecture | SCHOOL OF SCIENCE & ENGINEERING"]
["BAHAMAS, THE ",null,null,null,null,"Diploma in Civil Engineering","SCHOOL OF SCIENCE & ENGINEERING","Diploma in Civil Engineering | SCHOOL OF SCIENCE & ENGINEERING"]
[null,null,null,null,null,"Diploma in Electrical Engineering","SCHOOL OF SCIENCE & ENGINEERING","Diploma in Electrical Engineering | SCHOOL OF SCIENCE & ENGINEERING"]
[null,null,null,null,null,"Diploma in Electrionic and Communication Engineering","SCHOOL OF SCIENCE & ENGINEERING","Diploma in Electrionic and Communication Engineering | SCHOOL OF SCIENCE & ENGINEERING"]
["BAHRAIN ",null,null,null,null,"Diploma in Electrical and Electronics Engineering","SCHOOL OF SCIENCE & ENGINEERING","Diploma in Electrical and Electronics Engineering | SCHOOL OF SCIENCE & ENGINEERING"]
["BANGLADESH ",null,null,null,null,"Diploma in Interior Design","SCHOOL OF SCIENCE & ENGINEERING","Diploma in Interior Design | SCHOOL OF SCIENCE & ENGINEERING"]
["BARBADOS ",null,null,null,null,"Diploma in Mechanical Engineering","SCHOOL OF SCIENCE & ENGINEERING","Diploma in Mechanical Engineering | SCHOOL OF SCIENCE & ENGINEERING"]
["BELARUS ",null,null,null,null,"Diploma in Petroleum Engineering","SCHOOL OF SCIENCE & ENGINEERING","Diploma in Petroleum Engineering | SCHOOL OF SCIENCE & ENGINEERING"]
["BELGIUM ",null,null,null,null,"Diploma in Telecommunications and Systems Engineering","SCHOOL OF SCIENCE & ENGINEERING","Diploma in Telecommunications and Systems Engineering | SCHOOL OF SCIENCE & ENGINEERING"]
["BELIZE ",null,null,null,null,null,null,"NONE"]
["BENIN "]
["BERMUDA "]
["BHUTAN "]
["BOLIVIA "]
["BOSNIA & HERZEGOVINA "]
["BOTSWANA "]
["BRAZIL "]
["BRITISH VIRGIN IS. "]
["BRUNEI DARUSSALAM"]
["BULGARIA "]
["BURKINA FASO "]
["BURMA "]
["BURUNDI "]
["CAMBODIA "]
["CAMEROON "]
["CANADA "]
["CAPE VERDE "]
["CAYMAN ISLANDS "]
["CENTRAL AFRICAN REP. "]
["CHAD "]
["CHILE "]
["CHINA "]
["COLOMBIA "]
["COMOROS "]
["CONGO, DEM. REP. "]
["CONGO, REPUB. OF THE "]
["COOK ISLANDS "]
["COSTA RICA "]
["COTE D'IVOIRE "]
["CROATIA "]
["CUBA "]
["CYPRUS "]
["CZECH REPUBLIC "]
["DENMARK "]
["DJIBOUTI "]
["DOMINICA "]
["DOMINICAN REPUBLIC "]
["EAST TIMOR "]
["ECUADOR "]
["EGYPT "]
["EL SALVADOR "]
["EQUATORIAL GUINEA "]
["ERITREA "]
["ESTONIA "]
["ETHIOPIA "]
["FAROE ISLANDS "]
["FIJI "]
["FINLAND "]
["FRANCE "]
["FRENCH GUIANA "]
["FRENCH POLYNESIA "]
["GABON "]
["GAMBIA, THE "]
["GAZA STRIP "]
["GEORGIA "]
["GERMANY "]
["GHANA "]
["GIBRALTAR "]
["GREECE "]
["GREENLAND "]
["GRENADA "]
["GUADELOUPE "]
["GUAM "]
["GUATEMALA "]
["GUERNSEY "]
["GUINEA "]
["GUINEA-BISSAU "]
["GUYANA "]
["HAITI "]
["HONDURAS "]
["HONG KONG "]
["HUNGARY "]
["ICELAND "]
["INDIA "]
["INDONESIA "]
["IRAN "]
["IRAQ "]
["IRELAND "]
["ISLE OF MAN "]
["ISRAEL "]
["ITALY "]
["JAMAICA "]
["JAPAN "]
["JERSEY "]
["JORDAN "]
["KAZAKHSTAN "]
["KENYA "]
["KIRIBATI "]
["KOREA, NORTH "]
["KOREA, SOUTH "]
["KUWAIT "]
["KYRGYZSTAN "]
["LAOS "]
["LATVIA "]
["LEBANON "]
["LESOTHO "]
["LIBERIA "]
["LIBYA "]
["LIECHTENSTEIN "]
["LITHUANIA "]
["LUXEMBOURG "]
["MACAU "]
["MACEDONIA "]
["MADAGASCAR "]
["MALAWI "]
["MALAYSIA "]
["MALDIVES "]
["MALI "]
["MALTA "]
["MARSHALL ISLANDS "]
["MARTINIQUE "]
["MAURITANIA "]
["MAURITIUS "]
["MAYOTTE "]
["MEXICO "]
["MICRONESIA, FED. ST. "]
["MOLDOVA "]
["MONACO "]
["MONGOLIA "]
["MONTSERRAT "]
["MOROCCO "]
["MOZAMBIQUE "]
["NAMIBIA "]
["NAURU "]
["NEPAL "]
["NETHERLANDS "]
["NETHERLANDS ANTILLES "]
["NEW CALEDONIA "]
["NEW ZEALAND "]
["NICARAGUA "]
["NIGER "]
["NIGERIA "]
["N. MARIANA ISLANDS "]
["NORWAY "]
["OMAN "]
["PAKISTAN "]
["PALAU "]
["PANAMA "]
["PAPUA NEW GUINEA "]
["PARAGUAY "]
["PERU "]
["PHILIPPINES "]
["POLAND "]
["PORTUGAL "]
["PUERTO RICO "]
["QATAR "]
["REUNION "]
["ROMANIA "]
["RUSSIA "]
["RWANDA "]
["SAINT HELENA "]
["SAINT KITTS & NEVIS "]
["SAINT LUCIA "]
["ST PIERRE & MIQUELON "]
["SAINT VINCENT AND THE GRENADINES "]
["SAMOA "]
["SAN MARINO "]
["SAO TOME & PRINCIPE "]
["SAUDI ARABIA "]
["SENEGAL "]
["SERBIA "]
["SEYCHELLES "]
["SIERRA LEONE "]
["SINGAPORE "]
["SLOVAKIA "]
["SLOVENIA "]
["SOLOMON ISLANDS "]
["SOMALIA "]
["SOUTH AFRICA "]
["SPAIN "]
["SRI LANKA "]
["SUDAN "]
["SURINAME "]
["SWAZILAND "]
["SWEDEN "]
["SWITZERLAND "]
["SYRIA "]
["TAIWAN "]
["TAJIKISTAN "]
["TANZANIA "]
["THAILAND "]
["TOGO "]
["TONGA "]
["TRINIDAD & TOBAGO "]
["TUNISIA "]
["TURKEY "]
["TURKMENISTAN "]
["TURKS & CAICOS IS "]
["TUVALU "]
["UGANDA "]
["UKRAINE "]
["UNITED ARAB EMIRATES "]
["UNITED KINGDOM "]
["UNITED STATES "]
["URUGUAY "]
["UZBEKISTAN "]
["VANUATU "]
["VENEZUELA "]
["VIETNAM "]
["VIRGIN ISLANDS "]
["WALLIS AND FUTUNA "]
["WEST BANK "]
["WESTERN SAHARA "]
["YEMEN "]
["ZAMBIA "]
["ZIMBABWE "]